bitfinex-derivatives/quotes_BTCF0:USTF0_20241210
["timestamp","ask_amount","ask_price","bid_price","bid_amount"]
[1733826580675,0.09218857,97657.0,97656.0,0.00836008]
[1733826580880,0.09218857,97657.0,97656.0,0.19237766]
[1733826581080,0.09218857,97657.0,97656.0,0.00836008]
[1733826582676,0.09018857,97657.0,97656.0,0.00836008]
[1733826583390,0.09218857,97657.0,97656.0,0.00836008]
[1733826583589,0.14195904,97657.0,97656.0,0.00835987]
[1733826583982,0.14195904,97657.0,97655.0,0.18425721]
[1733826584189,0.051188,97644.0,97643.0,0.18425721]
[1733826584385,0.04977047,97644.0,97641.0,0.16689721]
[1733826584585,0.04977047,97644.0,97640.0,0.2112]
[1733826584586,0.05119,97641.0,97640.0,0.2112]
[1733826584884,0.20477678,97641.0,97640.0,0.2112]
[1733826585492,0.05127,97641.0,97640.0,0.2112]
[1733826587088,0.05127,97641.0,97640.0,0.2132]
[1733826590193,0.20477678,97641.0,97640.0,0.002]
[1733826590490,0.10105323,97641.0,97640.0,0.002]
[1733826591790,0.10105207,97641.0,97640.0,0.002]
[1733826592493,0.05127,97641.0,97640.0,0.002]
[1733826592696,0.20457547,97641.0,97640.0,0.002]
[1733826592894,0.56537547,97641.0,97640.0,0.002]
[1733826593088,0.51418547,97641.0,97627.0,0.2245]
[1733826593296,0.051197,97628.0,97627.0,0.2245]
[1733826593492,0.051277,97628.0,97627.0,0.26930966]
[1733826594088,0.051277,97628.0,97627.0,0.27443076]
[1733826594391,0.051277,97628.0,97627.0,0.27743076]
[1733826594597,0.052277,97628.0,97627.0,0.27743076]
[1733826594989,0.00108,97628.0,97627.0,0.32862776]
[1733826596089,0.00108,97628.0,97627.0,0.33182841]
[1733826597684,0.052277,97628.0,97627.0,0.33182841]
[1733826601092,0.052277,97628.0,97627.0,0.28701875]
[1733826602095,0.14426024,97628.0,97627.0,0.28701841]
[1733826602314,0.052277,97628.0,97627.0,0.33182613]
[1733826604113,0.09198324,97640.0,97627.0,0.69262613]
[1733826604400,8e-05,97641.0,97640.0,0.05119]
[1733826604605,8e-05,97641.0,97640.0,0.05951141]
[1733826605293,8e-05,97641.0,97640.0,0.06271156]
[1733826605492,8e-05,97641.0,97640.0,0.05951102]
[1733826605699,8e-05,97641.0,97640.0,0.05438983]
[1733826606297,8e-05,97641.0,97640.0,0.41518983]
[1733826606502,8e-05,97641.0,97640.0,0.42030956]
[1733826606701,8e-05,97641.0,97640.0,0.42230956]
[1733826607818,8e-05,97641.0,97640.0,0.42530956]
[1733826607819,0.00108,97641.0,97640.0,0.42530956]
[1733826608497,0.00108,97641.0,97640.0,0.43649005]
[1733826609000,0.00108,97641.0,97640.0,0.4812878]
[1733826610091,8e-05,97641.0,97640.0,0.4762878]
[1733826610298,0.00108,97641.0,97640.0,0.4802878]
[1733826610501,0.00108,97641.0,97640.0,0.48028748]
[1733826610700,0.00108,97641.0,97640.0,0.43549005]
[1733826612906,0.00108,97641.0,97640.0,0.48028752]
[1733826614601,0.00108,97641.0,97640.0,0.11948752]
[1733826614802,0.00108,97641.0,97640.0,0.48028752]
[1733826617713,0.00108,97641.0,97640.0,0.43549005]
[1733826618103,0.00108,97641.0,97640.0,0.42717049]
[1733826618306,0.00108,97641.0,97640.0,0.43549]
[1733826618603,0.00108,97641.0,97640.0,0.42717049]
[1733826618803,0.00108,97641.0,97640.0,0.43549001]
[1733826620612,0.00108,97641.0,97640.0,0.48028746]
[1733826622616,0.00108,97641.0,97640.0,0.11948746]
[1733826622809,0.00108,97641.0,97640.0,0.48028746]
[1733826624613,0.00108,97641.0,97640.0,0.48028745]
[1733826625020,0.00108,97641.0,97640.0,0.48028746]
[1733826625825,0.00108,97641.0,97640.0,0.43549001]
[1733826629122,0.09198324,97654.0,97653.0,0.051183]
[1733826629424,0.09198324,97659.0,97655.0,0.051182]
[1733826629728,0.37501985,97671.0,97655.0,0.051182]
[1733826629729,0.09198324,97662.0,97655.0,0.10433564]
[1733826629918,0.09198324,97663.0,97655.0,0.46513564]
[1733826630131,0.09198324,97666.0,97655.0,0.46513564]
[1733826630629,0.00308,97656.0,97655.0,0.46513564]
[1733826631128,0.00308,97656.0,97655.0,0.46513421]
[1733826631323,0.09198324,97671.0,97670.0,0.051175]
[1733826631523,0.15330547,97684.0,97670.0,0.411975]
[1733826631524,0.09193563,97673.0,97670.0,0.411975]
[1733826631724,0.09193563,97681.0,97673.0,0.051173]
[1733826631927,0.2144,97686.0,97680.0,0.3608]
[1733826631928,0.09193563,97684.0,97680.0,0.3608]
[1733826632127,0.12264432,97688.0,97680.0,0.3608]
[1733826632128,0.09193563,97688.0,97683.0,0.051168]
[1733826632323,0.09193563,97688.0,97687.0,0.051166]
[1733826632525,0.09193563,97688.0,97687.0,0.05952395]
[1733826632935,0.14310063,97688.0,97687.0,0.00835795]
[1733826633233,0.051165,97688.0,97687.0,0.00835795]
[1733826633424,0.051165,97688.0,97687.0,0.05952395]
[1733826633825,0.060165,97688.0,97687.0,0.00935795]
[1733826634229,0.051167,97685.0,97684.0,9.481e-05]
[1733826634429,0.051173,97673.0,97663.0,0.051178]
[1733826634632,0.14301626,97673.0,97663.0,0.051178]
[1733826634932,0.051258,97664.0,97663.0,0.051178]
[1733826635435,8e-05,97664.0,97663.0,0.05128097]
[1733826636328,8e-05,97664.0,97663.0,0.09606869]
[1733826636831,0.00108,97664.0,97663.0,0.09606869]
[1733826637025,0.00108,97664.0,97663.0,0.05128097]
[1733826637433,0.00308,97664.0,97663.0,0.05128097]
[1733826643133,0.00308,97664.0,97663.0,0.09606859]
[1733826644134,0.00308,97664.0,97663.0,0.05128097]
[1733826644328,0.00308,97664.0,97663.0,0.05639955]
[1733826645535,0.00308,97664.0,97663.0,0.05639954]
[1733826646329,0.00308,97664.0,97663.0,0.05959865]
[1733826647039,0.3608,97674.0,97673.0,0.051173]
[1733826647244,0.3608,97674.0,97673.0,0.10427718]
[1733826647439,0.411966,97686.0,97673.0,0.10427718]
[1733826647440,0.411966,97686.0,97685.0,0.051167]
[1733826647742,0.3608,97686.0,97685.0,0.05952468]
[1733826648944,0.411966,97686.0,97685.0,0.05952468]
[1733826649938,0.051166,97686.0,97685.0,0.05952468]
[1733826650244,0.066166,97686.0,97685.0,0.06052468]
[1733826656446,0.015,97686.0,97685.0,0.06052468]
[1733826658243,0.015,97686.0,97685.0,0.060523]
[1733826660042,0.013,97686.0,97685.0,0.060523]
[1733826660644,0.01,97686.0,97685.0,0.060523]
[1733826660839,0.01,97686.0,97685.0,0.052207]
[1733826661044,0.01,97686.0,97685.0,0.30527823]
[1733826661240,0.01,97686.0,97685.0,0.30207973]
[1733826661446,0.01,97686.0,97685.0,0.30719734]
[1733826661950,0.01,97686.0,97685.0,0.30527823]
[1733826662254,0.01,97686.0,97685.0,0.1053019]
[1733826662451,0.01,97686.0,97685.0,0.06052311]
[1733826664650,0.061166,97686.0,97685.0,0.06052311]
[1733826665545,0.061166,97686.0,97685.0,0.30527823]
[1733826665753,0.061166,97686.0,97685.0,0.06052311]
[1733826666152,0.061166,97686.0,97685.0,0.30527823]
[1733826666860,0.061166,97686.0,97685.0,0.29696212]
[1733826667160,0.061166,97686.0,97685.0,0.30527823]
[1733826669259,0.01,97686.0,97685.0,0.30527823]
[1733826671070,0.01,97686.0,97685.0,0.06052311]
[1733826671362,0.061166,97686.0,97685.0,0.06052311]
[1733826672463,0.061166,97686.0,97685.0,0.06236122]
[1733826672660,0.061166,97686.0,97685.0,0.06052311]
[1733826673157,0.01,97686.0,97685.0,0.09698584]
[1733826673364,0.01,97686.0,97685.0,0.1053019]
[1733826674062,0.061166,97686.0,97685.0,0.1053019]
[1733826676958,0.061166,97686.0,97685.0,0.09698584]
[1733826677263,0.061166,97686.0,97685.0,0.052207]
[1733826677464,0.15300926,97686.0,97685.0,0.052207]
[1733826677757,0.061166,97686.0,97685.0,0.05540549]
[1733826677962,0.061166,97686.0,97685.0,0.4066365]
[1733826678165,0.15300926,97686.0,97685.0,0.41175408]
[1733826678365,0.15300926,97686.0,97685.0,0.10530197]
[1733826678558,0.10184326,97686.0,97685.0,0.41175408]
[1733826678961,0.10184326,97686.0,97685.0,0.10530197]
[1733826679156,0.10184326,97686.0,97685.0,0.41175408]
[1733826679552,0.09584326,97686.0,97685.0,0.41075408]
[1733826679758,0.09584326,97686.0,97685.0,0.41275408]
[1733826680262,0.09184326,97686.0,97685.0,0.41075408]
[1733826680561,0.051165,97688.0,97685.0,0.41075408]
[1733826680562,0.051165,97688.0,97685.0,0.35327101]
[1733826680750,0.051165,97688.0,97687.0,0.05300633]
[1733826680951,0.051165,97688.0,97687.0,0.05816391]
[1733826681265,0.051165,97688.0,97687.0,0.0613624]
[1733826681449,0.051165,97688.0,97687.0,0.05952207]
[1733826682260,0.12245768,97690.0,97689.0,0.051164]
[1733826682261,0.051164,97690.0,97689.0,0.051164]
[1733826682454,0.051164,97690.0,97689.0,0.05948007]
[1733826682761,0.051164,97690.0,97689.0,0.05952007]
[1733826683157,0.17362168,97690.0,97689.0,0.05952007]
[1733826684161,0.17462168,97690.0,97689.0,0.05952007]
[1733826685364,0.001,97690.0,97689.0,0.37722005]
[1733826685663,0.001,97690.0,97689.0,0.41137508]
[1733826685868,0.00010681,97693.0,97692.0,0.051163]
[1733826686167,0.00010681,97693.0,97692.0,0.40012621]
[1733826687363,0.00210681,97693.0,97692.0,0.40012621]
[1733826687873,0.00410681,97693.0,97692.0,0.40012621]
[1733826689167,0.09206662,97705.0,97692.0,0.34896321]
[1733826689369,0.45286662,97706.0,97705.0,0.051156]
[1733826689574,0.3608,97706.0,97705.0,0.29636972]
[1733826689772,0.3608,97706.0,97705.0,0.29640972]
[1733826690071,0.3608,97706.0,97705.0,0.35134182]
[1733826690266,0.3608,97706.0,97705.0,0.34950231]
[1733826690468,0.3678,97706.0,97705.0,0.35234182]
[1733826690670,0.3678,97706.0,97705.0,0.35050231]
[1733826690867,0.3678,97706.0,97705.0,0.30572579]
[1733826691669,0.3678,97706.0,97705.0,0.06051207]
[1733826691876,0.3718,97706.0,97705.0,0.06051207]
[1733826694472,0.3718,97706.0,97705.0,0.07142742]
[1733826694867,0.3718,97706.0,97705.0,0.11619866]
[1733826695067,0.3718,97706.0,97705.0,0.07142742]
[1733826698488,0.3718,97706.0,97705.0,0.11619861]
[1733826699293,0.011,97706.0,97705.0,0.07142742]
[1733826699484,0.011,97706.0,97705.0,0.36140939]
[1733826699680,0.011,97706.0,97705.0,0.07142742]
[1733826699881,0.011,97706.0,97705.0,0.11619538]
[1733826700694,0.006,97706.0,97705.0,0.11619538]
[1733826700991,0.01,97706.0,97705.0,0.11619538]
[1733826701482,9.337e-05,97713.0,97712.0,0.051153]
[1733826701686,9.337e-05,97713.0,97712.0,0.70157756]
[1733826701891,9.337e-05,97713.0,97712.0,0.45676096]
[1733826702490,9.337e-05,97713.0,97712.0,0.70476441]
[1733826702693,9.337e-05,97713.0,97712.0,0.46507436]
[1733826703096,0.00909337,97713.0,97712.0,0.46607436]
[1733826703591,0.00909337,97713.0,97712.0,0.4213064]
[1733826703983,0.00909337,97713.0,97712.0,0.46606997]
[1733826704187,0.00909337,97713.0,97712.0,0.46506997]
[1733826704188,0.00509337,97713.0,97712.0,0.46506997]
[1733826704998,9.337e-05,97713.0,97712.0,0.46506997]
[1733826705697,3.7e-07,97713.0,97712.0,0.46519566]
[1733826706008,3.7e-07,97713.0,97712.0,0.76129977]
[1733826706189,3.7e-07,97713.0,97712.0,0.75810231]
[1733826709199,3.7e-07,97713.0,97712.0,0.75810178]
[1733826713609,3.7e-07,97713.0,97712.0,1.11890178]
[1733826714103,3.7e-07,97713.0,97712.0,1.11888146]
[1733826717194,0.051139,97740.0,97739.0,0.051138]
[1733826717408,0.0712863,97740.0,97739.0,0.0594502]
[1733826717596,0.0712863,97740.0,97739.0,0.0083522]
[1733826717791,0.0712863,97740.0,97739.0,0.003237]
[1733826717998,0.19404445,97740.0,97739.0,0.003237]
[1733826718300,0.20113401,97740.0,97739.0,0.004237]
[1733826718502,0.21013401,97740.0,97739.0,0.005237]
[1733826718720,0.21013401,97740.0,97739.0,0.00204]
[1733826719009,0.21013401,97740.0,97739.0,0.00523721]
[1733826719500,0.08737586,97740.0,97739.0,0.00523721]
[1733826720105,0.08737586,97740.0,97721.0,0.18343312]
[1733826720106,0.051147,97724.0,97719.0,0.18343312]
[1733826720406,0.4373,97723.0,97722.0,0.051147]
[1733826720698,0.6471,97723.0,97722.0,0.05626254]
[1733826721106,0.4284,97723.0,97722.0,0.05626254]
[1733826721511,0.2186,97723.0,97722.0,0.05626254]
[1733826721801,0.002,97724.0,97723.0,0.051147]
[1733826722002,0.002,97724.0,97723.0,0.05626254]
[1733826722197,0.3608,97730.0,97723.0,0.05626254]
[1733826722198,0.3608,97730.0,97729.0,0.051144]
[1733826722402,0.3608,97730.0,97729.0,0.05625954]
[1733826722610,0.253941,97735.0,97730.0,0.051143]
[1733826722611,0.3608,97731.0,97730.0,0.051143]
[1733826722802,0.3608,97731.0,97730.0,0.05625854]
[1733826723305,0.09175138,97733.0,97731.0,0.051142]
[1733826723306,0.051142,97732.0,97731.0,0.051142]
[1733826723499,0.411942,97732.0,97731.0,0.05625754]
[1733826723805,0.50369338,97732.0,97731.0,0.05625754]
[1733826724107,0.411942,97732.0,97731.0,0.05625754]
[1733826724301,0.411942,97732.0,97731.0,0.05629754]
[1733826725100,0.425942,97732.0,97731.0,0.05729754]
[1733826728204,0.54827718,97732.0,97731.0,0.05729754]
[1733826728408,0.54827718,97732.0,97731.0,0.00615554]
[1733826728701,0.425942,97732.0,97731.0,0.00615554]
[1733826729820,0.425942,97732.0,97717.0,0.051149]
[1733826729821,0.051149,97718.0,97717.0,0.051149]
[1733826730108,0.411949,97718.0,97717.0,0.051149]
[1733826730708,0.836249,97718.0,97717.0,0.051149]
[1733826730899,0.95881727,97718.0,97717.0,0.051149]
[1733826731099,0.838249,97718.0,97717.0,0.051149]
[1733826731300,0.840249,97718.0,97717.0,0.051149]
[1733826732105,0.96281727,97718.0,97717.0,0.05434677]
[1733826732517,0.840249,97718.0,97717.0,0.05434677]
[1733826732710,0.840249,97718.0,97712.0,0.01120003]
[1733826732711,0.051152,97713.0,97712.0,0.00012569]
[1733826733012,0.051232,97713.0,97712.0,0.00012569]
[1733826733410,0.17374529,97713.0,97712.0,0.00012569]
[1733826733616,0.051232,97713.0,97712.0,0.00012569]
[1733826733912,0.17374112,97713.0,97712.0,0.00012569]
[1733826734116,0.052232,97713.0,97712.0,0.00012569]
[1733826734613,0.17474112,97713.0,97712.0,0.00012569]
[1733826735112,0.052232,97713.0,97712.0,0.00012569]
[1733826735709,0.055232,97713.0,97712.0,0.00012569]
[1733826737514,0.056232,97713.0,97712.0,0.00012569]
[1733826738112,0.056232,97713.0,97712.0,0.05127869]
[1733826738317,0.00508,97713.0,97712.0,0.0565159]
[1733826738818,0.00508,97713.0,97712.0,0.23994902]
[1733826739207,0.00508,97713.0,97712.0,0.0565159]
[1733826739518,0.00508,97713.0,97712.0,0.24006055]
[1733826739718,0.00508,97713.0,97712.0,0.0565159]
[1733826740013,0.00508,97713.0,97712.0,0.06163223]
[1733826740415,0.00308,97713.0,97712.0,0.06163223]
[1733826740615,0.055232,97713.0,97712.0,0.25602749]
[1733826741320,0.054232,97713.0,97712.0,0.25602749]
[1733826741519,0.055232,97713.0,97712.0,0.07248284]
[1733826741914,0.055232,97713.0,97712.0,0.25602749]
[1733826742107,0.052232,97713.0,97712.0,0.25602749]
[1733826742308,0.054232,97713.0,97712.0,0.20487449]
[1733826742508,0.054232,97713.0,97712.0,0.02132984]
[1733826742712,0.054232,97713.0,97712.0,0.01047923]
[1733826744213,0.054232,97713.0,97712.0,0.06163223]
[1733826744716,0.054232,97713.0,97712.0,0.06483007]
[1733826748019,0.00308,97713.0,97712.0,0.06483007]
[1733826749714,0.00308,97713.0,97712.0,0.06666403]
[1733826750520,0.00308,97713.0,97712.0,0.06666581]
[1733826750714,0.00308,97713.0,97712.0,0.11143186]
[1733826751613,0.00308,97713.0,97712.0,0.10959564]
[1733826752113,0.054232,97713.0,97712.0,0.10959564]
[1733826753216,0.054232,97713.0,97712.0,0.35417314]
[1733826754024,0.054232,97713.0,97712.0,0.06482959]
[1733826756128,0.054232,97713.0,97712.0,0.01367659]
[1733826756426,0.054232,97713.0,97712.0,0.00843938]
[1733826758927,0.415032,97713.0,97712.0,0.00843938]
[1733826759860,0.21453137,97764.0,97730.0,0.3608]
[1733826760130,0.30647339,97798.0,97717.0,0.01]
[1733826760131,0.02090965,97782.0,97766.0,0.051124]
[1733826760320,0.02090965,97782.0,97763.0,0.7216]
[1733826760321,0.02090965,97782.0,97781.0,0.3608]
[1733826760637,0.2021,97799.0,97781.0,0.3608]
[1733826760638,0.051113,97788.0,97781.0,0.78307363]
[1733826760828,0.051113,97788.0,97784.0,0.30591563]
[1733826761031,0.08192,97787.0,97786.0,0.051114]
[1733826761226,0.08192,97798.0,97792.0,0.051111]
[1733826761424,0.133028,97798.0,97796.0,0.3608]
[1733826761625,0.133028,97798.0,97797.0,0.04474166]
[1733826762431,0.133028,97798.0,97797.0,0.04154365]
[1733826762730,0.133028,97798.0,97797.0,0.04473899]
[1733826762930,0.15312107,97798.0,97797.0,0.04154365]
[1733826763130,0.15312107,97798.0,97797.0,0.04473898]
[1733826763334,0.15312107,97798.0,97797.0,0.04473896]
[1733826763525,0.15312107,97798.0,97797.0,0.01597833]
[1733826763926,0.16012107,97798.0,97797.0,0.06171269]
[1733826764125,0.16012107,97798.0,97797.0,0.05851738]
[1733826764325,0.140028,97798.0,97797.0,0.04253905]
[1733826764533,0.148028,97798.0,97797.0,0.05923187]
[1733826765336,0.148028,97798.0,97797.0,0.04353905]
[1733826766731,0.148028,97798.0,97797.0,0.04353912]
[1733826767838,0.16890187,97798.0,97797.0,0.04353912]
[1733826769040,0.41779387,97798.0,97783.0,0.01567126]
[1733826769333,0.051116,97782.0,97781.0,0.3608]
[1733826769834,0.133116,97782.0,97781.0,0.3608]
[1733826770236,0.051116,97782.0,97781.0,0.3608]
[1733826770633,0.059116,97782.0,97781.0,0.3618]
[1733826770828,0.359116,97782.0,97781.0,0.001]
[1733826771032,0.359116,97782.0,97775.0,0.3608]
[1733826771033,0.051119,97776.0,97775.0,0.3608]
[1733826771432,0.051199,97776.0,97775.0,0.3608]
[1733826772035,0.10224,97775.0,97762.0,0.36216]
[1733826772243,0.051126,97763.0,97762.0,0.3608]
[1733826772535,0.051206,97763.0,97762.0,0.3608]
[1733826775139,0.06269519,97763.0,97762.0,0.3608]
[1733826775346,0.052206,97763.0,97762.0,0.3608]
[1733826776545,0.056206,97763.0,97762.0,0.3608]
[1733826776840,0.056206,97763.0,97762.0,0.411926]
[1733826777033,0.056206,97763.0,97762.0,0.41512228]
[1733826777445,0.055206,97763.0,97762.0,0.41512228]
[1733826777633,0.057206,97763.0,97762.0,0.41512228]
[1733826778241,0.055206,97763.0,97762.0,0.41512228]
[1733826778441,0.056206,97763.0,97762.0,0.41512228]
[1733826779038,0.056206,97763.0,97762.0,0.44069215]
[1733826779543,0.056206,97763.0,97762.0,0.3608]
[1733826779544,0.052206,97763.0,97762.0,0.3608]
[1733826779743,0.052206,97763.0,97762.0,0.38637062]
[1733826781042,0.06277515,97763.0,97762.0,0.40235275]
[1733826781739,0.06477515,97763.0,97762.0,0.40235275]
[1733826781940,0.06477515,97763.0,97762.0,0.40235352]
[1733826782140,0.06477515,97763.0,97762.0,0.58799904]
[1733826782353,0.06577515,97763.0,97762.0,0.58799904]
[1733826782937,0.08653749,97763.0,97762.0,0.58799904]
[1733826783141,0.08653749,97763.0,97762.0,0.40554994]
[1733826783344,0.08653749,97763.0,97762.0,0.40235352]
[1733826784040,0.08853749,97763.0,97762.0,0.40235352]
[1733826784644,0.08853749,97763.0,97762.0,0.40555014]
[1733826784847,0.08853749,97763.0,97762.0,0.58813817]
[1733826785145,0.08853749,97763.0,97762.0,0.40555014]
[1733826788147,0.08853749,97763.0,97762.0,0.04475014]
[1733826788343,0.08853749,97763.0,97762.0,0.0447502]
[1733826788944,0.08853749,97763.0,97762.0,0.04475014]
[1733826789446,0.08853749,97763.0,97762.0,0.04986474]
[1733826790344,0.08853749,97763.0,97762.0,0.04475014]
[1733826791447,0.06552177,97763.0,97762.0,0.04475014]
[1733826791652,0.06552177,97763.0,97762.0,0.04475278]
[1733826791850,0.06552177,97763.0,97762.0,0.04155616]
[1733826792052,0.06552177,97763.0,97762.0,0.04475278]
[1733826794153,0.06152177,97763.0,97762.0,0.02429429]
[1733826794345,0.06352177,97763.0,97762.0,0.02429429]
[1733826794852,0.051127,97761.0,97760.0,0.30591563]
[1733826795046,0.051127,97761.0,97760.0,0.41200378]
[1733826795245,0.051207,97761.0,97760.0,0.41200378]
[1733826795447,0.051207,97761.0,97760.0,0.42798663]
[1733826796048,0.052207,97761.0,97760.0,0.42798663]
[1733826796861,0.051207,97761.0,97760.0,0.42798663]
[1733826798051,0.051207,97761.0,97760.0,0.42876101]
[1733826798650,0.051207,97761.0,97760.0,0.47988801]
[1733826799157,8e-05,97761.0,97760.0,0.47988801]
[1733826799556,0.051118,97779.0,97778.0,0.051118]
[1733826799757,0.051118,97779.0,97778.0,0.47887901]
[1733826799957,0.051118,97779.0,97778.0,0.42780101]
[1733826800161,0.051118,97779.0,97778.0,1.01764854]
[1733826800657,0.051118,97779.0,97778.0,0.65010101]
[1733826802462,0.055118,97779.0,97778.0,0.65010101]
[1733826803860,0.062118,97779.0,97778.0,0.65110101]
[1733826804059,0.08241454,97779.0,97778.0,0.65110101]
[1733826804261,0.03129654,97779.0,97778.0,0.70221901]
[1733826804761,0.03129654,97779.0,97778.0,0.70221685]
[1733826805552,0.01080874,97789.0,97778.0,0.65109885]
[1733826805770,0.051114,97786.0,97785.0,0.3608]
[1733826805959,0.051114,97786.0,97785.0,0.38509178]
[1733826806457,0.07161386,97786.0,97785.0,0.38509178]
[1733826807863,0.07661386,97786.0,97785.0,0.38509178]
[1733826808466,0.07961386,97786.0,97785.0,0.38509178]
[1733826809067,0.07461386,97786.0,97785.0,0.38509178]
[1733826809262,0.07561386,97786.0,97785.0,0.38509178]
[1733826809468,0.07561386,97786.0,97785.0,0.37997859]
[1733826809858,0.07461386,97786.0,97785.0,0.37997859]
[1733826810056,0.07561386,97786.0,97785.0,0.37997859]
[1733826810660,0.07461386,97786.0,97785.0,0.37997859]
[1733826810861,0.07461386,97786.0,97785.0,0.62464184]
[1733826811071,0.07461386,97786.0,97785.0,0.01917859]
[1733826811263,0.07461386,97786.0,97777.0,0.24466325]
[1733826811464,0.07461386,97786.0,97774.0,0.3608]
[1733826811766,0.07461386,97786.0,97757.0,0.36754753]
[1733826811767,0.051122,97770.0,97769.0,0.24466325]
[1733826812063,0.051122,97770.0,97755.0,0.3608]
[1733826812064,0.051122,97770.0,97763.0,0.24466325]
[1733826812264,0.051125,97764.0,97763.0,0.24466325]
[1733826812459,0.051205,97764.0,97763.0,0.24466325]
[1733826813063,8e-05,97764.0,97761.0,0.24466325]
[1733826813264,0.051126,97762.0,97761.0,0.24466325]
[1733826813463,0.051126,97762.0,97760.0,0.24466325]
[1733826813464,8e-05,97762.0,97760.0,0.24466325]
[1733826813659,0.051127,97761.0,97760.0,0.24466325]
[1733826813857,0.051207,97761.0,97760.0,0.24466325]
[1733826814060,0.051127,97760.0,97759.0,0.24466325]
[1733826814468,0.051207,97760.0,97759.0,0.24466325]
[1733826815273,8e-05,97760.0,97756.0,0.24466325]
[1733826815475,0.051129,97757.0,97756.0,0.24466325]
[1733826815663,8e-05,97757.0,97756.0,0.24466325]
[1733826815863,0.051209,97757.0,97756.0,0.24466325]
[1733826816672,0.051129,97756.0,97755.0,0.3608]
[1733826817173,0.051209,97756.0,97755.0,0.3608]
[1733826818071,0.052209,97756.0,97755.0,0.3678]
[1733826818467,0.052209,97756.0,97755.0,0.3708]
[1733826820979,0.05230272,97756.0,97755.0,0.3708]
[1733826822581,0.05230272,97756.0,97755.0,0.01]
[1733826823280,0.05230272,97756.0,97755.0,0.02598498]
[1733826825089,0.05230272,97756.0,97755.0,0.01]
[1733826826283,0.05230272,97756.0,97755.0,0.3708]
[1733826827077,0.05230272,97756.0,97755.0,0.37399685]
[1733826829081,0.05230272,97756.0,97755.0,0.38998047]
[1733826833992,0.05230272,97756.0,97755.0,0.68577372]
[1733826834201,0.05230272,97756.0,97755.0,0.44111047]
[1733826834390,0.05230272,97756.0,97755.0,0.44622501]
[1733826834688,0.05230272,97756.0,97755.0,0.44622408]
[1733826836686,0.05230272,97756.0,97755.0,0.39509408]
[1733826836886,0.05230272,97756.0,97755.0,0.63471155]
[1733826837088,0.05230272,97756.0,97755.0,0.38997954]
[1733826837789,0.05230272,97756.0,97755.0,0.02917954]
[1733826840492,0.05230272,97756.0,97755.0,0.27391155]
[1733826841503,0.05230272,97756.0,97755.0,0.02917954]
[1733826841894,0.051134,97748.0,97742.0,0.30602931]
[1733826842097,0.051137,97741.0,97739.0,0.30602931]
[1733826842300,0.051138,97740.0,97739.0,0.30602931]
[1733826842498,0.051218,97740.0,97738.0,0.30602931]
[1733826842704,0.051138,97739.0,97738.0,0.30602931]
[1733826842902,0.051218,97739.0,97738.0,0.31114494]
[1733826843595,0.051218,97739.0,97738.0,0.00511563]
[1733826843797,0.051218,97739.0,97738.0,0.00911563]
[1733826844393,0.052218,97739.0,97738.0,0.011]
[1733826844599,0.052218,97739.0,97738.0,0.01611564]
[1733826845499,0.052218,97739.0,97738.0,0.01511564]
[1733826846499,0.052218,97739.0,97738.0,0.01]
[1733826846706,0.06292567,97739.0,97738.0,0.01511564]
[1733826846903,0.052218,97739.0,97738.0,0.01511564]
[1733826851601,0.3608,97744.0,97738.0,0.70934744]
[1733826851910,0.10036383,97745.0,97742.0,0.3608]
[1733826852212,0.051136,97744.0,97743.0,0.00511564]
[1733826853706,0.051136,97744.0,97743.0,0.00711564]
[1733826853900,0.051136,97744.0,97743.0,0.01031263]
[1733826855904,0.052136,97744.0,97743.0,0.01531263]
[1733826856101,9.372e-05,97756.0,97755.0,0.05113]
[1733826856304,9.372e-05,97756.0,97755.0,0.05944263]
[1733826856605,9.372e-05,97756.0,97755.0,0.36569053]
[1733826856798,9.372e-05,97756.0,97755.0,0.44471197]
[1733826859397,9.372e-05,97756.0,97755.0,0.44470947]
[1733826860207,9.372e-05,97756.0,97755.0,0.45559768]
[1733826860603,0.051126,97763.0,97755.0,0.45559768]
[1733826860604,0.051126,97763.0,97762.0,0.051126]
[1733826860809,0.051126,97763.0,97762.0,0.42023613]
[1733826861012,0.051126,97763.0,97762.0,0.42027613]
[1733826861318,0.051126,97763.0,97762.0,0.62057613]
[1733826862018,0.053126,97763.0,97762.0,0.25977613]
[1733826862210,0.056126,97763.0,97762.0,0.62057613]
[1733826863012,0.005,97763.0,97762.0,0.62057613]
[1733826863710,0.005,97763.0,97762.0,1.31105654]
[1733826863911,0.005,97763.0,97762.0,1.00518288]
[1733826865112,0.003,97763.0,97762.0,1.00518288]
[1733826865512,8e-05,97764.0,97763.0,0.051126]
[1733826865708,8e-05,97764.0,97763.0,0.27423613]
[1733826865907,8e-05,97764.0,97763.0,0.27427613]
[1733826867209,8e-05,97764.0,97763.0,0.27527613]
[1733826869618,8e-05,97764.0,97763.0,0.27527515]
[1733826872414,0.3608,97790.0,97763.0,0.27527515]
[1733826872610,0.20036383,97800.0,97787.0,0.051112]
[1733826872611,0.051113,97788.0,97787.0,0.051112]
[1733826872820,0.051113,97788.0,97787.0,0.411912]
[1733826873025,0.051113,97788.0,97787.0,0.41510751]
[1733826873413,0.6314,97797.0,97792.0,0.051111]
[1733826873414,0.051111,97793.0,97792.0,0.051111]
[1733826873611,0.051111,97793.0,97792.0,0.05430651]
[1733826874721,0.051111,97793.0,97792.0,0.05941894]
[1733826875125,0.0001034,97794.0,97792.0,0.00830794]
[1733826875324,0.3608,97827.0,97793.0,0.41510551]
[1733826875514,0.3608,97837.0,97793.0,0.41510551]
[1733826875515,0.051096,97821.0,97820.0,0.051094]
[1733826875825,0.467492,97829.0,97820.0,0.00319444]
[1733826876018,0.051095,97822.0,97813.0,0.3608]
[1733826876219,0.05121233,97817.0,97816.0,0.051098]
[1733826876721,0.00011433,97817.0,97816.0,0.05429257]
[1733826878232,0.00511433,97817.0,97816.0,0.05529257]
[1733826879324,0.00511433,97817.0,97816.0,0.05629257]
[1733826879325,0.01411433,97817.0,97816.0,0.05629257]
[1733826880433,0.01411433,97817.0,97816.0,0.06140358]
[1733826882131,0.01411433,97817.0,97816.0,0.06140329]
[1733826883435,0.01411433,97817.0,97816.0,0.06140339]
[1733826884344,0.06521233,97817.0,97816.0,0.06140339]
[1733826884845,0.06521233,97817.0,97816.0,0.06140368]
[1733826885241,0.06521233,97817.0,97816.0,0.053098]
[1733826885444,0.06521233,97817.0,97816.0,0.01030573]